bitfinex-derivatives/quotes_BNBF0:USTF0_20250128
["timestamp","ask_amount","ask_price","bid_price","bid_amount"]
[1738073357371,1.15218345,671.34,670.02,0.29849855]
[1738073357565,1.15218345,671.33,670.02,0.29849855]
[1738073357771,1.15218345,671.32,670.02,0.29849855]
[1738073357966,1.15218345,671.31,670.02,0.29849855]
[1738073358172,1.15218345,671.3,670.02,0.29849855]
[1738073358372,1.15218345,671.29,670.02,0.29849855]
[1738073358571,1.15218345,671.28,670.02,0.29849855]
[1738073358770,1.15218345,671.27,670.02,0.29849855]
[1738073358968,1.15218345,671.26,670.02,0.29849855]
[1738073359171,1.15218345,671.25,670.02,0.29849855]
[1738073359368,1.15218345,671.24,670.02,0.29849855]
[1738073359674,1.15218345,671.23,670.02,0.29849855]
[1738073359869,1.15218345,671.22,670.02,0.29849855]
[1738073360073,0.86934604,671.21,670.02,0.29849855]
[1738073360773,1.15182539,671.2,670.02,0.29849855]
[1738073360968,0.29788057,671.41,670.02,0.29849855]
[1738073361177,1.15184165,671.4,670.02,0.29849855]
[1738073361373,1.15184165,671.39,670.02,0.29849855]
[1738073361574,1.15184165,671.38,670.02,0.29849855]
[1738073361775,1.15184165,671.37,670.02,0.29849855]
[1738073361970,1.15184165,671.36,670.02,0.29849855]
[1738073362274,2.02085385,671.35,670.02,0.29849855]
[1738073362473,1.15184165,671.34,670.02,0.29849855]
[1738073362674,1.15184165,671.33,670.02,0.29849855]
[1738073362976,1.15184165,671.32,670.02,0.29849855]
[1738073363175,1.15184165,671.31,670.02,0.29849855]
[1738073363375,0.8690122,671.33,670.02,0.29849855]
[1738073363376,1.15184165,671.3,670.02,0.29849855]
[1738073363575,1.15184165,671.29,670.02,0.29849855]
[1738073363777,1.15184165,671.28,670.02,0.29849855]
[1738073363976,0.8690122,671.3,670.02,0.29849855]
[1738073363977,1.15184165,671.27,670.02,0.29849855]
[1738073364276,1.15184165,671.26,670.02,0.29849855]
[1738073364480,1.15184165,671.25,670.02,0.29849855]
[1738073364776,1.15184165,671.24,670.02,0.29849855]
[1738073364977,1.15184165,671.23,670.02,0.29849855]
[1738073365175,1.15184165,671.22,670.02,0.29849855]
[1738073365376,1.15184165,671.21,670.02,0.29849855]
[1738073365677,1.15184165,671.2,670.02,0.29849855]
[1738073365872,1.15184165,671.19,670.02,0.29849855]
[1738073366177,1.15184165,671.18,670.02,0.29849855]
[1738073366371,0.29788057,671.41,670.02,0.29849855]
[1738073366574,1.15169048,671.4,670.02,0.29849855]
[1738073366774,0.29788057,671.41,670.02,0.29849855]
[1738073366975,1.1517096,671.4,670.02,0.29849855]
[1738073367178,1.1517096,671.39,670.02,0.29849855]
[1738073367377,1.1517096,671.38,670.02,0.29849855]
[1738073367572,1.1517096,671.37,670.02,0.29849855]
[1738073367778,1.1517096,671.36,670.02,0.29849855]
[1738073368779,0.86899702,671.35,670.02,0.29849855]
[1738073368979,1.1517096,671.34,670.02,0.29849855]
[1738073369376,0.86899702,671.33,670.02,0.29849855]
[1738073369681,1.1517096,671.32,670.02,0.29849855]
[1738073369981,0.86899702,671.31,670.02,0.29849855]
[1738073370176,1.1517096,671.3,670.02,0.29849855]
[1738073370980,0.86899702,671.29,670.02,0.29849855]
[1738073371181,1.1517096,671.28,670.02,0.29849855]
[1738073371583,1.1517096,671.28,670.02,1.4061646]
[1738073371779,0.86899702,671.27,670.02,1.4061646]
[1738073371982,1.1517096,671.26,670.02,1.4061646]
[1738073372381,0.86899702,671.25,670.02,1.4061646]
[1738073372679,1.1517096,671.24,670.02,1.4061646]
[1738073372884,0.86899702,671.23,670.02,1.4061646]
[1738073373084,1.1517096,671.22,670.02,1.4061646]
[1738073373488,0.86899702,671.21,670.02,1.4061646]
[1738073373685,1.1517096,671.2,670.03,1.55633323]
[1738073373888,0.86899702,671.19,670.04,0.29848964]
[1738073374087,1.1517096,671.18,670.08,1.10766605]
[1738073374289,0.86899702,671.17,670.08,1.10766605]
[1738073374988,0.86899702,671.17,670.09,0.29846737]
[1738073376887,0.86899702,671.17,670.22,1.10766605]
[1738073377088,0.86899702,671.4,670.23,0.29840502]
[1738073377287,1.15188775,671.39,670.23,0.29840502]
[1738073377485,1.15188775,671.38,670.23,0.29840502]
[1738073377692,1.15188775,671.37,670.23,0.29840502]
[1738073377991,2.02088477,671.36,670.23,0.29840502]
[1738073378192,1.15188451,671.35,670.23,0.29840502]
[1738073378391,1.15188451,671.34,670.23,0.29840502]
[1738073378592,1.15188451,671.33,670.23,0.29840502]
[1738073378786,1.15188451,671.32,670.23,0.29840502]
[1738073378992,1.15188451,671.31,670.23,0.29840502]
[1738073379193,1.15188451,671.3,670.23,0.29840502]
[1738073379388,1.15188451,671.29,670.23,0.29840502]
[1738073379592,2.02088153,671.28,670.23,0.29840502]
[1738073379793,1.15188451,671.27,670.23,0.29840502]
[1738073379990,1.15188451,671.26,670.23,0.29840502]
[1738073380297,2.02088153,671.25,670.23,1.40607107]
[1738073380494,0.86899702,671.25,670.23,1.40607107]
[1738073380994,0.86899702,671.4,670.23,1.40607107]
[1738073381197,1.15180443,671.39,670.23,1.40607107]
[1738073381395,1.15180443,671.38,670.23,1.40607107]
[1738073381591,1.15180443,671.37,670.23,1.40607107]
[1738073381890,1.15180443,671.36,670.23,1.40607107]
[1738073382095,1.15180443,671.35,670.23,1.40607107]
[1738073382296,1.15180443,671.34,670.23,1.40607107]
[1738073382596,1.15180443,671.33,670.23,1.40607107]
[1738073382794,1.15180443,671.32,670.23,1.40607107]
[1738073382991,1.15180443,671.31,670.23,1.40607107]
[1738073383795,1.15180443,671.31,670.34,1.10766605]
[1738073383995,0.86899702,671.3,670.34,1.10766605]
[1738073384194,1.15180443,671.29,670.34,1.10766605]
[1738073385592,0.29788057,671.41,670.34,1.10766605]
[1738073385799,1.15203687,671.4,670.34,1.10766605]
[1738073385998,2.02122706,671.39,670.34,1.10766605]
[1738073386196,1.15203687,671.38,670.34,1.10766605]
[1738073386397,1.15203687,671.37,670.34,1.10766605]
[1738073386597,2.02122706,671.36,670.34,1.10766605]
[1738073386794,1.15203687,671.35,670.38,1.10766605]
[1738073386994,0.86919019,671.36,670.38,1.10766605]
[1738073386995,1.15203687,671.34,670.38,1.10766605]
[1738073387294,1.15203687,671.33,670.38,1.10766605]
[1738073387493,1.15203687,671.32,670.38,1.10766605]
[1738073387693,1.15203687,671.31,670.38,1.10766605]
[1738073387894,0.86919019,671.33,670.38,1.10766605]
[1738073387895,1.15203687,671.3,670.38,1.10766605]
[1738073388094,1.15203687,671.29,670.38,1.10766605]
[1738073388293,0.86919019,671.3,670.38,1.10766605]
[1738073388294,1.15203687,671.28,670.38,1.10766605]
[1738073388499,1.15203687,671.27,670.38,1.10766605]
[1738073388698,2.02122706,671.26,670.38,1.10766605]
[1738073388894,1.15203687,671.25,670.38,1.10766605]
[1738073389701,0.86919019,671.24,670.38,1.10766605]
[1738073389901,1.15203687,671.23,670.38,1.10766605]
[1738073390102,1.15203687,671.23,670.28,1.10766605]
[1738073390399,0.86919019,671.22,670.28,1.10766605]
[1738073390601,1.15203687,671.21,670.28,1.10766605]
[1738073391001,0.86919019,671.2,670.28,1.10766605]
[1738073391201,1.15203687,671.19,670.28,1.10766605]
[1738073392401,0.86919019,671.18,670.28,1.10766605]
[1738073392596,1.15203687,671.17,670.28,1.10766605]
[1738073392796,1.15203687,671.17,670.31,1.10766605]
[1738073392999,0.86919019,671.16,670.31,1.10766605]
[1738073393200,1.15203687,671.15,670.31,1.10766605]
[1738073393800,0.86919019,671.14,670.31,1.10766605]
[1738073394000,1.15203687,671.13,670.31,1.10766605]
[1738073394802,2.02122706,671.12,670.31,1.10766605]
[1738073395102,2.02122706,671.11,670.31,1.10766605]
[1738073395301,1.15203687,671.1,670.31,1.10766605]
[1738073395505,1.15203687,671.09,670.31,1.10766605]
[1738073395701,0.86919019,671.11,670.23,0.29840502]
[1738073395702,1.15203687,671.08,670.26,1.10766605]
[1738073396002,1.15203687,671.07,670.26,1.10766605]
[1738073396202,1.15203687,671.06,670.26,1.10766605]
[1738073396402,1.15203687,671.05,670.26,1.10766605]
[1738073396701,1.15203687,671.04,670.26,1.10766605]
[1738073396898,1.15203687,671.03,670.26,1.10766605]
[1738073397097,1.15203687,671.02,670.26,1.10766605]
[1738073397298,1.15203687,671.01,670.26,1.10766605]
[1738073397501,1.15203687,671.0,670.26,1.10766605]
[1738073397703,1.15203687,670.99,670.26,1.10766605]
[1738073398003,1.15203687,670.98,670.26,1.10766605]
[1738073398300,1.15203687,670.97,670.26,1.10766605]
[1738073398504,1.15526127,670.96,670.26,1.10766605]
[1738073398704,1.15526127,670.95,670.26,1.10766605]
[1738073398904,1.15526127,670.94,670.26,1.10766605]
[1738073399103,1.15526127,670.93,670.26,1.10766605]
[1738073399305,1.15526127,670.92,670.26,1.10766605]
[1738073399506,1.15526127,670.91,670.26,1.10766605]
[1738073399805,0.86919019,670.93,664.38,6.68349154]
[1738073399806,1.15526127,670.9,669.72,1.10766605]
[1738073400002,1.15526127,670.89,669.73,0.2986278]
[1738073400202,1.15526127,670.88,669.73,0.2986278]
[1738073400503,1.15526127,670.87,669.73,0.2986278]
[1738073400699,1.15526127,670.86,669.73,0.2986278]
[1738073400906,1.15526127,670.85,669.73,0.2986278]
[1738073401205,2.02445146,670.84,669.73,0.2986278]
[1738073401400,0.86919019,670.84,669.73,0.2986278]
[1738073401606,1.55693668,671.37,669.73,0.2986278]
[1738073401806,1.42968385,671.36,669.73,0.2986278]
[1738073402002,1.42968385,671.35,669.73,0.2986278]
[1738073402203,2.02780495,671.34,669.73,0.2986278]
[1738073402408,1.15569441,671.33,669.73,0.2986278]
[1738073402604,1.15569441,671.32,669.73,0.2986278]
[1738073402807,1.15569441,671.31,669.73,0.2986278]
[1738073403108,1.15569441,671.3,669.73,0.2986278]
[1738073403304,1.15569441,671.29,669.79,1.10766605]
[1738073403506,1.15569441,671.28,669.79,1.10766605]
[1738073403701,1.15569441,671.27,669.81,0.29859213]
[1738073403904,1.15569441,671.26,669.81,0.29859213]
[1738073404106,1.15569441,671.25,669.81,0.29859213]
[1738073404409,1.15569441,671.24,669.81,0.29859213]
[1738073404711,1.15569441,671.23,669.81,0.29859213]
[1738073404908,1.15569441,671.22,669.81,0.29859213]
[1738073405104,0.8720617,671.23,669.81,0.29859213]
[1738073405105,1.15569441,671.21,669.81,0.29859213]
[1738073405304,2.02775611,671.2,669.81,0.29859213]
[1738073405505,1.15569441,671.19,669.81,0.29859213]
[1738073405803,1.15569441,671.18,669.81,0.29859213]
[1738073406104,2.02775611,671.17,669.81,0.29859213]
[1738073406309,1.15569441,671.16,669.81,0.29859213]
[1738073406609,1.15569441,671.15,669.81,0.29859213]
[1738073406809,1.15569441,671.14,669.81,0.29859213]
[1738073407009,1.15569441,671.13,669.81,0.29859213]
[1738073407203,1.15569441,671.12,669.81,0.29859213]
[1738073407407,1.15569441,671.11,669.81,0.29859213]
[1738073407702,2.02775611,671.1,670.14,1.10766605]
[1738073407902,1.15569441,671.09,670.14,1.10766605]
[1738073408105,1.15569441,671.08,670.14,1.10766605]
[1738073408304,2.02775611,671.07,670.14,1.10766605]
[1738073408508,1.15569441,671.06,670.14,1.10766605]
[1738073408803,1.15569441,671.05,670.14,1.10766605]
[1738073409009,1.15569441,671.04,670.14,1.10766605]
[1738073409208,1.15569441,671.03,670.14,1.10766605]
[1738073409409,1.15569441,671.02,670.14,1.10766605]
[1738073409609,2.02775611,671.01,670.14,1.10766605]
[1738073409812,1.15569441,671.0,670.14,1.10766605]
[1738073410004,0.8720617,671.01,670.14,1.10766605]
[1738073410005,1.15569441,670.99,670.14,1.10766605]
[1738073410213,1.15569441,670.98,670.14,1.10766605]
[1738073410412,1.15569441,670.97,669.81,0.29859213]
[1738073410606,1.15569441,670.96,669.81,0.29859213]
[1738073410806,1.15569441,670.95,669.81,0.29859213]
[1738073411010,1.15569441,670.94,669.81,0.29859213]
[1738073411211,1.15569441,670.93,669.81,0.29859213]
[1738073411412,0.29788057,671.41,669.81,0.29859213]
[1738073411611,1.15475247,671.4,669.81,0.29859213]
[1738073411912,1.15475247,671.39,669.81,0.29859213]
[1738073412113,1.15475247,671.38,669.81,0.29859213]
[1738073412311,1.15475247,671.37,669.81,0.29859213]
[1738073412506,1.15475247,671.36,669.81,0.29859213]
[1738073412710,1.15475247,671.35,669.81,0.29859213]
[1738073413011,1.15475247,671.34,669.91,1.10766605]
[1738073413211,1.15475247,671.33,669.92,0.2985431]
[1738073413514,2.02611523,671.32,669.92,0.2985431]
[1738073413708,1.15475247,671.31,669.92,0.2985431]
[1738073413913,1.15475247,671.3,669.92,1.85494013]
[1738073414113,1.15475247,671.29,669.92,1.85494013]
[1738073414307,1.15475247,671.28,669.92,1.85494013]
[1738073414513,1.15475247,671.27,669.92,1.85494013]
[1738073414713,1.15475247,671.26,669.92,1.85494013]
[1738073414914,1.15475247,671.25,669.92,1.85494013]
[1738073415112,2.02611523,671.24,669.92,1.85494013]
[1738073415311,1.15475247,671.23,669.92,1.85494013]
[1738073415516,1.15475247,671.22,669.92,1.85494013]
[1738073415715,1.15475247,671.21,669.97,1.10766605]
[1738073415915,2.02611523,671.2,669.98,0.29851637]
[1738073416115,1.15475247,671.19,669.98,0.29851637]
[1738073416315,2.02611523,671.18,669.98,0.29851637]
[1738073416512,1.15475247,671.17,669.98,0.29851637]
[1738073416714,1.15475247,671.16,669.98,0.29851637]
[1738073416911,2.02611523,671.15,669.98,0.29851637]
[1738073417114,1.15475247,671.14,669.98,0.29851637]
[1738073417314,1.15475247,671.13,669.98,0.29851637]
[1738073417514,1.15475247,671.12,669.98,0.29851637]
[1738073417716,1.15475247,671.11,669.98,0.29851637]
[1738073417918,1.15475247,671.1,669.98,0.29851637]
[1738073418119,1.15475247,671.09,669.98,0.29851637]
[1738073418318,1.15475247,671.08,669.98,0.29851637]
[1738073418519,2.02611523,671.07,669.98,0.29851637]
[1738073418720,1.15475247,671.06,669.98,1.40618242]
[1738073419020,1.15475247,671.05,669.98,1.40618242]
[1738073419211,1.15475247,671.04,669.98,1.40618242]
[1738073419417,1.15475247,671.03,669.98,1.40618242]
[1738073419613,1.15475247,671.02,669.98,1.40618242]
[1738073419818,1.15475247,671.01,669.98,1.40618242]
[1738073420013,1.15475247,671.0,669.98,1.40618242]
[1738073420214,2.02611523,670.99,669.98,1.40618242]
[1738073420413,1.15475247,670.98,669.98,1.40618242]
[1738073420819,0.87136276,670.97,669.98,1.40618242]
[1738073421114,1.55661749,671.36,669.98,1.40618242]
[1738073421115,2.02611523,670.96,669.98,1.40618242]
[1738073421321,1.15475247,670.95,669.98,1.40618242]
[1738073421620,2.02611523,670.94,669.98,1.40618242]
[1738073421813,1.15475247,670.93,669.98,1.40618242]
[1738073422014,0.87136276,670.92,669.98,1.40618242]
[1738073422215,1.15475247,670.91,669.98,0.29851637]
[1738073422820,0.87136276,670.9,669.98,0.29851637]
[1738073423021,1.15475247,670.89,669.98,0.29851637]
[1738073423321,0.87136276,670.9,669.98,0.29851637]
[1738073423521,0.87136276,670.88,669.98,0.29851637]
[1738073423821,1.15451586,670.87,669.98,0.29851637]
[1738073424016,1.15451586,670.86,669.98,0.29851637]
[1738073424316,1.15451586,670.85,669.98,0.29851637]
[1738073424519,0.87136276,670.86,669.98,0.29851637]
[1738073424718,1.1543917,670.85,669.98,0.29851637]
[1738073424921,1.1543917,670.84,669.98,0.29851637]
[1738073425221,1.15429215,670.83,669.98,0.29851637]
[1738073425417,1.15429215,670.82,669.98,0.29851637]
[1738073425622,1.15429215,670.81,669.98,0.29851637]
[1738073425816,1.15411865,670.8,669.98,0.29851637]
[1738073426020,1.15401754,670.79,669.98,0.29851637]
[1738073426221,1.15401754,670.78,669.98,0.29851637]
[1738073426422,1.15401754,670.77,669.98,0.29851637]
[1738073426623,1.15401754,670.76,669.98,0.29851637]
[1738073426822,1.15401754,670.75,669.98,0.29851637]
[1738073427016,1.55661749,671.36,669.98,0.29851637]
[1738073427017,2.0253803,670.74,669.98,0.29851637]
[1738073427220,1.15401754,670.73,669.98,0.29851637]
[1738073427418,1.15401754,670.72,669.98,0.29851637]
[1738073427622,1.15401754,670.71,669.98,0.29851637]
[1738073427823,1.15401754,670.7,669.98,0.29851637]
[1738073428024,2.0253803,670.69,669.98,0.29851637]
[1738073428220,1.15401754,670.68,669.98,0.29851637]
[1738073428420,2.0253803,670.67,669.98,0.29851637]
[1738073428621,1.15401754,670.66,669.98,0.29851637]
[1738073428818,1.15401754,670.65,669.98,0.29851637]
[1738073429025,1.15401754,670.64,669.98,0.29851637]
[1738073429222,0.87136276,670.67,669.98,0.29851637]
[1738073429422,1.15229304,670.66,669.98,0.29851637]
[1738073429624,1.15229906,670.65,669.98,0.29851637]
[1738073429824,0.29788057,671.41,669.98,0.29851637]
[1738073430125,1.42636829,671.4,669.98,0.29851637]
[1738073430326,1.55735473,671.06,669.98,0.29851637]
[1738073430522,1.42636829,671.05,669.98,0.29851637]
[1738073430825,2.02165373,671.04,669.98,0.29851637]
[1738073431118,2.02165373,671.03,669.98,0.29851637]
[1738073431319,1.15229412,671.02,669.98,0.29851637]
[1738073431624,1.42637503,671.01,669.98,0.29851637]
[1738073431824,1.42637503,671.0,669.98,0.29851637]
[1738073432019,2.29573464,670.99,669.98,0.29851637]
[1738073432223,1.15229412,670.98,669.98,0.29851637]
[1738073432424,1.15229412,670.97,669.98,0.29851637]
[1738073432620,1.15229412,670.96,669.98,0.29851637]
[1738073432822,1.15229412,670.95,669.98,0.29851637]
[1738073433027,1.15229412,670.94,669.98,0.29851637]
[1738073433224,1.15229412,670.93,669.98,0.29851637]
[1738073433423,2.02165373,670.92,669.98,0.29851637]
[1738073433620,1.15229412,670.91,669.98,0.29851637]
[1738073433820,2.02165373,670.9,669.98,0.29851637]
[1738073434127,1.15229412,670.89,669.98,0.29851637]
[1738073434426,1.09293429,671.32,669.98,0.29851637]
[1738073434427,2.02165373,670.88,669.98,0.29851637]
[1738073434623,1.15229412,670.87,669.98,0.29851637]
[1738073434829,1.15229412,670.86,669.98,0.29851637]
[1738073435023,1.15229412,670.85,669.98,0.29851637]
[1738073435225,1.15229412,670.84,669.98,0.29851637]
[1738073435426,1.15229412,670.83,669.98,0.29851637]
[1738073435625,1.15229412,670.82,669.98,0.29851637]
[1738073435927,0.86935961,670.83,669.98,0.29851637]
[1738073436128,1.1512586,670.82,669.98,0.29851637]
[1738073436330,0.29789389,671.38,669.98,0.29851637]
[1738073436628,1.42524196,671.37,669.98,0.29851637]
[1738073436828,1.72314472,671.36,669.98,0.29851637]
[1738073437027,1.72307125,671.35,669.98,0.29851637]
[1738073437226,0.29791607,671.33,669.98,0.29851637]
[1738073437427,2.2938873,671.32,669.98,0.29851637]
[1738073437728,0.29792939,671.3,669.98,0.29851637]
[1738073438025,1.425198,671.29,669.98,0.29851637]
[1738073438223,1.72313626,671.28,669.98,0.29851637]
[1738073438425,1.7231407,671.27,669.98,0.29851637]
[1738073438625,2.59186839,671.26,669.98,0.29851637]
[1738073438824,1.72314958,671.25,669.98,0.29851637]
[1738073439026,1.72315402,671.24,669.98,0.29851637]
[1738073439228,1.72315846,671.23,669.98,0.29851637]
[1738073439424,1.72316289,671.22,669.98,0.29851637]
[1738073439630,1.72316733,671.21,669.98,0.29851637]
[1738073439832,1.72317177,671.2,669.98,0.29851637]
[1738073440029,1.72317621,671.19,669.98,0.29851637]
[1738073440227,1.425198,671.18,669.98,0.29851637]
[1738073440428,2.29392125,671.17,669.98,0.29851637]
[1738073440629,1.15114758,671.16,669.98,0.29851637]
[1738073440826,1.15114758,671.15,669.98,0.29851637]
[1738073441133,1.15114758,671.14,669.98,0.29851637]
[1738073441326,1.15114758,671.13,669.98,0.29851637]
[1738073441532,1.15114758,671.12,669.98,0.29851637]
[1738073441732,1.15114758,671.11,669.98,0.29851637]
[1738073441927,2.01987083,671.1,669.98,0.29851637]
[1738073442127,1.15114758,671.09,669.98,0.29851637]
[1738073442327,1.15114758,671.08,669.98,0.29851637]
[1738073442527,1.15114758,671.07,669.98,0.29851637]
[1738073442731,1.15114758,671.06,669.98,0.29851637]
[1738073443027,1.15114758,671.05,669.98,0.29851637]
[1738073443231,1.15114758,671.04,669.98,0.29851637]
[1738073443427,1.15114758,671.03,669.98,0.29851637]
[1738073443627,2.01987083,671.02,669.98,0.29851637]
[1738073443831,1.15114758,671.01,669.98,0.29851637]
[1738073444028,1.15114758,671.0,669.98,0.29851637]
[1738073444234,1.15114758,670.99,669.98,0.29851637]
[1738073444536,2.01987083,670.98,669.98,0.29851637]
[1738073444733,1.15114758,670.97,669.98,0.29851637]
[1738073444930,1.15114758,670.96,669.98,0.29851637]
[1738073445127,1.15114758,670.95,669.98,0.29851637]
[1738073445433,1.15114758,670.94,669.98,0.29851637]
[1738073445734,1.15114758,670.93,669.98,0.29851637]
[1738073446035,1.15233888,670.92,669.98,0.29851637]
[1738073446236,1.15233888,670.91,669.98,0.29851637]
[1738073446433,1.15233888,670.9,669.98,0.29851637]
[1738073446628,1.15233888,670.89,669.98,0.29851637]
[1738073446827,1.15233888,670.88,669.98,0.29851637]
[1738073447434,0.86872325,670.87,669.98,0.29851637]
[1738073447635,1.15233888,670.86,669.98,0.29851637]
[1738073448031,0.86872325,670.85,669.98,0.29851637]
[1738073448232,1.15233888,670.84,669.98,0.29851637]
[1738073449228,0.86872325,670.83,669.98,0.29851637]
[1738073449428,1.15233888,670.82,669.98,0.29851637]
[1738073449830,0.86872325,670.81,669.98,0.29851637]
[1738073450034,1.15233888,670.8,669.98,0.29851637]
[1738073450235,0.86872325,670.81,669.98,0.29851637]
[1738073450437,0.29797821,671.19,669.98,0.29851637]
[1738073450631,1.15356796,671.18,669.98,0.29851637]
[1738073450835,1.15356796,671.17,669.98,0.29851637]
[1738073451130,1.15356796,671.16,669.98,0.29851637]
[1738073451335,1.15356796,671.15,669.98,0.29851637]
[1738073451531,1.15356796,671.14,669.98,0.29851637]
[1738073451737,1.15356796,671.13,669.98,0.29851637]
[1738073451937,1.15356796,671.12,669.98,0.29851637]
[1738073452136,1.15356796,671.11,669.98,0.29851637]
[1738073452337,2.02404327,671.1,669.98,0.29851637]
[1738073452538,1.15356796,671.09,669.98,0.29851637]
[1738073452740,1.15356796,671.08,669.98,0.29851637]
[1738073452934,1.15356796,671.07,669.98,0.29851637]
[1738073453133,1.15356796,671.06,669.98,0.29851637]
[1738073453332,2.02404327,671.05,669.98,0.29851637]
[1738073453536,1.15356796,671.04,669.98,0.29851637]
[1738073453741,1.15356796,671.03,669.98,0.29851637]
[1738073453939,1.15356796,671.02,669.98,0.29851637]
[1738073454140,1.15356796,671.01,669.98,0.29851637]
[1738073454440,1.15356796,671.0,669.98,0.29851637]
[1738073454639,1.15356796,670.99,669.98,0.29851637]
[1738073454940,1.15356796,670.98,669.98,0.29851637]
[1738073455238,1.15356796,670.97,669.98,0.29851637]
[1738073455434,1.15356796,670.96,669.98,0.29851637]
[1738073455638,1.15356796,670.95,669.98,0.29851637]
[1738073455839,1.15356796,670.94,669.98,0.29851637]
[1738073456036,1.15356796,670.93,669.98,1.40618242]
[1738073456240,1.15356796,670.92,669.98,1.40618242]
[1738073456441,1.15356796,670.91,669.98,1.40618242]
[1738073456740,1.15356796,670.9,669.98,1.40618242]
[1738073457039,0.87047531,670.89,669.98,1.40618242]
[1738073457240,1.15356796,670.88,669.98,1.40618242]
[1738073457839,0.87047531,670.87,669.98,1.40618242]
[1738073458041,1.15356796,670.86,669.98,1.40618242]
[1738073458342,0.87047531,670.85,669.98,1.40618242]
[1738073458542,1.15356796,670.84,670.09,1.10766605]
[1738073459036,0.87047531,670.83,670.09,1.10766605]
[1738073459738,0.87047531,671.18,670.09,1.10766605]
[1738073459936,1.15474515,671.17,670.09,1.10766605]
[1738073460134,1.15474515,671.16,670.09,1.10766605]
[1738073460339,1.15474515,671.15,670.09,1.10766605]
[1738073460540,1.15474515,671.14,670.09,1.10766605]
[1738073460737,1.15474515,671.13,670.09,1.10766605]
[1738073460943,1.15474515,671.12,670.09,1.10766605]
[1738073461144,2.02603351,671.11,670.09,1.10766605]
[1738073461344,1.15474515,671.1,670.09,1.10766605]
[1738073461541,1.15474515,671.09,670.02,1.10766605]
[1738073461744,1.15474515,671.08,670.02,1.10766605]
[1738073461940,1.15474515,671.07,670.02,1.10766605]
[1738073462145,1.15474515,671.06,670.02,1.10766605]
[1738073462342,1.15474515,671.05,670.02,1.10766605]
[1738073462540,1.15474515,671.04,670.02,1.10766605]
[1738073462740,2.02603351,671.03,670.02,1.10766605]
[1738073463039,1.15474515,671.02,670.02,1.10766605]
[1738073463244,1.15474515,671.01,670.02,1.10766605]
[1738073463444,1.15474515,671.0,670.02,1.10766605]
[1738073463646,1.15474515,670.99,670.02,1.10766605]
[1738073463845,1.15474515,670.98,670.02,1.10766605]
[1738073464141,1.15474515,670.97,670.02,1.10766605]
[1738073464346,1.15474515,670.96,670.02,1.10766605]
[1738073464543,1.15474515,670.95,670.02,1.10766605]
[1738073464742,1.15474515,670.94,670.02,1.10766605]
[1738073464947,1.15474515,670.93,670.02,1.10766605]
[1738073465347,0.87128836,670.92,670.02,1.10766605]
[1738073465544,0.87128836,670.92,670.03,0.29849409]
[1738073465750,0.87128836,671.18,670.03,0.29849409]
[1738073466051,1.15493698,671.17,670.03,0.29849409]
[1738073466344,1.15493698,671.16,670.03,0.29849409]
[1738073466549,2.02622534,671.16,670.03,0.29849409]
[1738073466848,2.02622534,671.15,670.03,0.29849409]
[1738073467044,1.15493698,671.14,670.03,0.29849409]
[1738073467249,1.15493698,671.13,670.03,0.29849409]
[1738073467445,1.15493698,671.12,670.03,0.29849409]
[1738073467650,1.15493698,671.11,670.03,0.29849409]
[1738073467950,1.15493698,671.1,670.03,0.29849409]
[1738073468150,0.87128836,671.13,670.03,0.29849409]
[1738073468151,2.02622534,671.09,670.03,0.29849409]
[1738073468354,1.15493698,671.08,670.03,0.29849409]
[1738073468653,1.15493698,671.07,670.03,0.29849409]
[1738073468856,1.15493698,671.06,670.03,0.29849409]
[1738073469051,1.15493698,671.05,670.03,0.29849409]
[1738073469251,1.15493698,671.04,670.03,0.29849409]
[1738073469451,1.15493698,671.03,670.03,0.29849409]
[1738073469653,1.15493698,671.02,670.03,0.29849409]
[1738073469853,2.02622534,671.01,670.03,0.29849409]
[1738073470052,1.15493698,671.0,670.03,0.29849409]
[1738073470246,1.15493698,670.99,670.03,0.29849409]
[1738073470452,1.15493698,670.98,670.03,0.29849409]
[1738073470655,1.15493698,670.97,670.03,0.29849409]
[1738073470848,1.15493698,670.96,670.03,0.29849409]
[1738073471053,2.02622534,670.95,670.03,0.29849409]
[1738073471253,1.15493698,670.94,670.03,0.29849409]
[1738073471454,1.15493698,670.93,670.03,0.29849409]
[1738073471654,1.15493698,670.92,670.03,0.29849409]
[1738073471854,1.15493698,670.91,670.03,0.29849409]
[1738073472055,1.15493698,670.9,670.03,0.29849409]
[1738073472353,1.15493698,670.89,670.03,0.29849409]
[1738073472555,2.02622534,670.88,670.03,0.29849409]
[1738073472750,1.15493698,670.87,670.03,0.29849409]
[1738073472949,0.87128836,670.86,670.03,0.29849409]
[1738073473355,1.15474883,670.85,670.03,0.29849409]
[1738073473655,2.02603719,670.84,670.03,0.29849409]
[1738073473849,1.15474883,670.83,670.03,0.29849409]
[1738073474052,1.15474883,670.82,670.03,0.29849409]
[1738073474252,2.02603719,670.81,670.03,0.29849409]
[1738073474455,1.15474883,670.8,670.03,0.29849409]
[1738073474750,1.15474883,670.79,670.03,0.29849409]
[1738073474953,1.15474883,670.78,670.03,0.29849409]
[1738073475155,1.15474883,670.77,670.03,0.29849409]
[1738073475354,1.15474883,670.76,670.03,0.29849409]
[1738073475551,1.15474883,670.75,670.03,0.29849409]
[1738073475757,2.02603719,670.74,670.03,0.29849409]